[Event "Weekend Groninger Combinatie 2019"]
[Site "Groningen"]
[Date "2019.05.30"]
[Round "1.1"]
[White "Brockmann, Fabian"]
[Black "Maris, Ivo"]
[Result "0-1"]
[ECO "B20"]
[WhiteElo "2044"]
[BlackElo "2386"]
[Annotator "ChessBase"]
[PlyCount "42"]
[EventDate "2019.05.30"]
[EventType "swiss"]
[EventCountry "NED"]
[SourceTitle "playchess.com"]
[Source "ChessBase"]
[SourceQuality "1"]
[TimeControl "5400+30"]

1. e4 {[%emt 0:00:00]} c5 {[%emt 0:00:00]} 2. b3 {[%emt 0:00:00]} g6 {[%emt 0:00:27]} 3. Bb2 {[%emt 0:00:29]} Nf6 {[%emt 0:00:05]} 4. c4 {[%emt 0:04:48]} d6 {[%emt 0:02:18]} 5. f4 {[%emt 0:04:30]} Bg7 {[%emt 0:07:17]} 6. Nf3 {[%emt 0:00:54]} O-O {[%emt 0:00:15]} 7. d3 {[%emt 0:00:18]} Nc6 {[%emt 0:01:55]} 8. Be2 {[%emt 0:00:30]} e5 {[%emt 0:01:05]} 9. fxe5 {[%emt 0:01:52]} Ng4 {[%emt 0:03:45]} 10. Qd2 {[%emt 0:09:56]} Bh6 {[%emt 0:00:16]} 11. Qc3 {[%emt 0:00:43]} dxe5 {[%emt 0:00:23]} 12. h3 {[%emt 0:09:11]} Ne3 {[%emt 0:02:20]} 13. g4 {[%emt 0:03:36]} Nd4 {[%emt 0:02:33]} 14. Na3 {[%emt 0:07:42]} Qf6 {[%emt 0:02:11]} 15. Kf2 {[%emt 0:04:42]} Bxg4 {[%emt 0:05:45]} 16. hxg4 {[%emt 0:01:00]} Nxg4+ {[%emt 0:00:16]} 17. Ke1 {[%emt 0:06:43]} Nxf3+ {[%emt 0:00:30]} 18. Bxf3 {[%emt 0:00:27]} Qxf3 {[%emt 0:00:06]} 19. Rf1 {[%emt 0:00:22]} Qe3+ {[%emt 0:00:31]} 20. Kd1 {[%emt 0:00:07]} Rad8 {[%emt 0:00:13]} 21. Kc2 {[%emt 0:00:47]} Qe2+ {[%emt 0:00:06]} 0-1

[Event "Weekend Groninger Combinatie 2019"]
[Site "Groningen"]
[Date "2019.05.30"]
[Round "1.2"]
[White "Zwirs, Nico"]
[Black "Noordenbos, Daan"]
[Result "1-0"]
[ECO "C04"]
[WhiteElo "2386"]
[BlackElo "2033"]
[Annotator "ChessBase"]
[PlyCount "43"]
[EventDate "2019.05.30"]
[EventType "swiss"]
[EventCountry "NED"]
[SourceTitle "playchess.com"]
[Source "ChessBase"]
[SourceQuality "1"]
[TimeControl "5400+30"]

1. e4 {[%emt 0:00:00]} e6 {[%emt 0:00:00]} 2. d4 {[%emt 0:00:00]} d5 {[%emt 0:00:00]} 3. Nd2 {[%emt 0:01:13]} Nc6 {[%emt 0:00:00]} 4. Ngf3 {[%emt 0:00:10]} Nf6 {[%emt 0:00:01]} 5. e5 {[%emt 0:02:28]} Nd7 {[%emt 0:00:02]} 6. Nb3 {[%emt 0:00:28]} a5 {[%emt 0:01:58]} 7. a4 {[%emt 0:00:08]} Be7 {[%emt 0:04:18]} 8. Bb5 {[%emt 0:02:46]} Na7 {[%emt 0:09:39]} 9. Bd3 {[%emt 0:00:05]} b6 {[%emt 0:06:32]} 10. Bd2 {[%emt 0:08:04]} O-O {[%emt 0:06:41]} 11. h4 {[%emt 0:04:34]} c5 {[%emt 0:02:47]} 12. Bxh7+ {[%emt 0:02:16]} Kh8 {[%emt 0:00:34]} 13. Ng5 {[%emt 0:11:31]} g6 {[%emt 0:03:46]} 14. Bxg6 {[%emt 0:01:56]} fxg6 {[%emt 0:00:03]} 15. h5 {[%emt 0:00:49]} Bxg5 {[%emt 0:02:19]} 16. hxg6+ {[%emt 0:00:12]} Kg7 {[%emt 0:00:21]} 17. Rh7+ {[%emt 0:00:11]} Kxg6 {[%emt 0:00:35]} 18. Qh5+ {[%emt 0:00:04]} Kf5 {[%emt 0:00:05]} 19. g4+ {[%emt 0:00:09]} Ke4 {[%emt 0:00:14]} 20. Bxg5 {[%emt 0:00:45]} Qe8 {[%emt 0:00:59]} 21. Qh1+ {[%emt 0:00:08]} Rf3 {[%emt 0:00:02]} 22. O-O-O {[%emt 0:01:06]} 1-0

[Event "Weekend Groninger Combinatie 2019"]
[Site "Groningen"]
[Date "2019.05.30"]
[Round "1.3"]
[White "Rupert, Casper"]
[Black "Hoeksema, Hendrik Pieter"]
[Result "1/2-1/2"]
[ECO "C11"]
[WhiteElo "2022"]
[BlackElo "2349"]
[Annotator "ChessBase"]
[PlyCount "59"]
[EventDate "2019.05.30"]
[EventType "swiss"]
[EventCountry "NED"]
[SourceTitle "playchess.com"]
[Source "ChessBase"]
[SourceQuality "1"]
[TimeControl "5400+30"]

1. d4 {[%emt 0:00:00]} e6 {[%emt 0:01:31]} 2. e4 {[%emt 0:00:20]} d5 {[%emt 0:00:07]} 3. Nc3 {[%emt 0:00:41]} Nf6 {[%emt 0:00:44]} 4. e5 {[%emt 0:00:41]} Nfd7 {[%emt 0:00:07]} 5. Nce2 {[%emt 0:00:23]} c5 {[%emt 0:00:25]} 6. c3 {[%emt 0:00:06]} Nc6 {[%emt 0:00:23]} 7. f4 {[%emt 0:00:14]} b5 {[%emt 0:06:18]} 8. a3 {[%emt 0:05:50]} a5 {[%emt 0:05:32]} 9. Nf3 {[%emt 0:00:44]} Ba6 {[%emt 0:00:25]} 10. g3 {[%emt 0:01:28]} b4 {[%emt 0:02:04]} 11. axb4 {[%emt 0:03:24]} axb4 {[%emt 0:00:08]} 12. Bg2 {[%emt 0:00:24]} Be7 {[%emt 0:07:28]} 13. O-O {[%emt 0:08:49]} O-O {[%emt 0:03:21]} 14. Be3 {[%emt 0:01:12]} Qb6 {[%emt 0:04:42]} 15. Rf2 {[%emt 0:04:05]} Bc4 {[%emt 0:02:26]} 16. f5 {[%emt 0:13:11]} Rxa1 {[%emt 0:02:48]} 17. Qxa1 {[%emt 0:00:04]} exf5 {[%emt 0:00:06]} 18. cxb4 {[%emt 0:07:02]} Bxe2 {[%emt 0:09:52]} 19. Rxe2 {[%emt 0:05:45]} cxd4 {[%emt 0:00:36]} 20. Bf2 {[%emt 0:00:12]} Bxb4 {[%emt 0:00:20]} 21. e6 {[%emt 0:04:41]} fxe6 {[%emt 0:03:17]} 22. Rxe6 {[%emt 0:00:06]} Nc5 {[%emt 0:35:06]} 23. Nxd4 {[%emt 0:06:01]} Nxe6 {[%emt 0:00:32]} 24. Nxe6 {[%emt 0:00:06]} Qb5 {[%emt 0:04:17]} 25. Nxf8 {[%emt 0:03:34]} Bxf8 {[%emt 0:01:10]} 26. Qa8 {[%emt 0:02:21]} Ne7 {[%emt 0:01:34]} 27. b4 {[%emt 0:03:46]} Qxb4 {[%emt 0:01:16]} 28. Bxd5+ {[%emt 0:00:07]} Nxd5 {[%emt 0:00:04]} 29. Qxd5+ {[%emt 0:00:07]} Kh8 {[%emt 0:00:02]} 30. Qxf5 {[%emt 0:00:09]} 1/2-1/2

[Event "Weekend Groninger Combinatie 2019"]
[Site "Groningen"]
[Date "2019.05.30"]
[Round "1.4"]
[White "De Boer, Eelke"]
[Black "Traetmar, Mattis"]
[Result "1-0"]
[ECO "B28"]
[WhiteElo "2333"]
[BlackElo "1988"]
[Annotator "ChessBase"]
[PlyCount "35"]
[EventDate "2019.05.30"]
[EventType "swiss"]
[EventCountry "NED"]
[SourceTitle "playchess.com"]
[Source "ChessBase"]
[SourceQuality "1"]
[TimeControl "5400+30"]

1. e4 {[%emt 0:00:00]} c5 {[%emt 0:00:00]} 2. Nf3 {[%emt 0:00:00]} a6 {[%emt 0:00:00]} 3. c3 {[%emt 0:00:15]} e6 {[%emt 0:00:00]} 4. d4 {[%emt 0:00:41]} d5 {[%emt 0:00:00]} 5. e5 {[%emt 0:00:24]} Bd7 {[%emt 0:00:00]} 6. Bd3 {[%emt 0:14:56]} Bb5 {[%emt 0:01:12]} 7. Bxb5+ {[%emt 0:00:29]} axb5 {[%emt 0:00:05]} 8. dxc5 {[%emt 0:00:16]} Bxc5 {[%emt 0:00:20]} 9. b4 {[%emt 0:02:13]} Be7 {[%emt 0:14:03]} 10. Qd3 {[%emt 0:01:17]} Nc6 {[%emt 0:01:24]} 11. O-O {[%emt 0:03:00]} Qd7 {[%emt 0:02:34]} 12. Na3 {[%emt 0:01:57]} d4 {[%emt 0:06:02]} 13. Nxd4 {[%emt 0:03:20]} Bxb4 {[%emt 0:04:17]} 14. Naxb5 {[%emt 0:01:35]} Bf8 {[%emt 0:11:42]} 15. Rd1 {[%emt 0:02:48]} O-O-O {[%emt 0:07:16]} 16. Qc4 {[%emt 0:06:20]} Qd5 {[%emt 0:05:52]} 17. Qa4 {[%emt 0:00:37]} Bc5 {[%emt 0:03:14]} 18. Bg5 {[%emt 0:02:25]} 1-0

[Event "Weekend Groninger Combinatie 2019"]
[Site "Groningen"]
[Date "2019.05.30"]
[Round "1.5"]
[White "Pellikaan, Govert"]
[Black "Hilwerda, Jonas"]
[Result "1/2-1/2"]
[ECO "A48"]
[WhiteElo "1980"]
[BlackElo "2317"]
[Annotator "ChessBase"]
[PlyCount "54"]
[EventDate "2019.05.30"]
[EventType "swiss"]
[EventCountry "NED"]
[SourceTitle "playchess.com"]
[Source "ChessBase"]
[SourceQuality "1"]
[TimeControl "5400+30"]

1. d4 {[%emt 0:00:00]} Nf6 {[%emt 0:00:00]} 2. Nf3 {[%emt 0:00:03]} b6 {[%emt 0:00:19]} 3. Bf4 {[%emt 0:02:12]} Bb7 {[%emt 0:00:09]} 4. e3 {[%emt 0:00:39]} g6 {[%emt 0:00:31]} 5. c3 {[%emt 0:00:07]} Bg7 {[%emt 0:00:12]} 6. Nbd2 {[%emt 0:00:12]} O-O {[%emt 0:00:56]} 7. Be2 {[%emt 0:00:24]} d6 {[%emt 0:02:22]} 8. h4 {[%emt 0:02:32]} h5 {[%emt 0:05:38]} 9. Rg1 {[%emt 0:00:50]} Nbd7 {[%emt 0:03:36]} 10. Ng5 {[%emt 0:02:00]} e5 {[%emt 0:02:16]} 11. dxe5 {[%emt 0:00:31]} dxe5 {[%emt 0:01:25]} 12. Bh2 {[%emt 0:00:21]} Qe7 {[%emt 0:04:06]} 13. Qc2 {[%emt 0:01:03]} a5 {[%emt 0:04:12]} 14. g4 {[%emt 0:05:59]} hxg4 {[%emt 0:04:06]} 15. O-O-O {[%emt 0:06:41]} Ba6 {[%emt 0:06:37]} 16. Bxa6 {[%emt 0:03:04]} Rxa6 {[%emt 0:03:00]} 17. f4 {[%emt 0:00:58]} exf4 {[%emt 0:06:57]} 18. exf4 {[%emt 0:00:27]} Qe2 {[%emt 0:02:11]} 19. Bg3 {[%emt 0:05:15]} Nc5 {[%emt 0:02:02]} 20. Kb1 {[%emt 0:09:15]} Nd5 {[%emt 0:07:09]} 21. Rge1 {[%emt 0:07:37]} Qd3 {[%emt 0:01:27]} 22. Nf1 {[%emt 0:04:25]} Qxc2+ {[%emt 0:05:43]} 23. Kxc2 {[%emt 0:00:01]} c6 {[%emt 0:01:24]} 24. Ne3 {[%emt 0:03:28]} Rd8 {[%emt 0:09:30]} 25. Nxg4 {[%emt 0:04:12]} Ra7 {[%emt 0:02:01]} 26. Nf3 {[%emt 0:01:51]} Rad7 {[%emt 0:02:01]} 27. Nfe5 {[%emt 0:03:52]} Rd6 {[%emt 0:11:59]} 1/2-1/2

[Event "Weekend Groninger Combinatie 2019"]
[Site "Groningen"]
[Date "2019.05.30"]
[Round "1.6"]
[White "Pel, Bonno"]
[Black "Van der Hagen, Loek"]
[Result "1-0"]
[ECO "B07"]
[WhiteElo "2260"]
[BlackElo "1978"]
[Annotator "ChessBase"]
[PlyCount "87"]
[EventDate "2019.05.30"]
[EventType "swiss"]
[EventCountry "NED"]
[SourceTitle "playchess.com"]
[Source "ChessBase"]
[SourceQuality "1"]
[TimeControl "5400+30"]

1. g3 {[%emt 0:00:00]} Nf6 {[%emt 0:00:00]} 2. Bg2 {[%emt 0:00:40]} g6 {[%emt 0:00:08]} 3. e4 {[%emt 0:00:31]} d6 {[%emt 0:01:39]} 4. d4 {[%emt 0:00:19]} Bg7 {[%emt 0:01:00]} 5. Ne2 {[%emt 0:01:29]} O-O {[%emt 0:01:11]} 6. O-O {[%emt 0:00:40]} e5 {[%emt 0:03:35]} 7. Nbc3 {[%emt 0:03:39]} Nc6 {[%emt 0:01:05]} 8. dxe5 {[%emt 0:05:25]} Nxe5 {[%emt 0:04:39]} 9. f4 {[%emt 0:04:55]} Nc6 {[%emt 0:04:23]} 10. h3 {[%emt 0:02:55]} Re8 {[%emt 0:04:39]} 11. g4 {[%emt 0:08:51]} Bxg4 {[%emt 0:13:40]} 12. hxg4 {[%emt 0:08:03]} Nxg4 {[%emt 0:00:12]} 13. Bh3 {[%emt 0:07:59]} Qh4 {[%emt 0:03:58]} 14. Kg2 {[%emt 0:03:11]} f5 {[%emt 0:10:20]} 15. Ng3 {[%emt 0:03:13]} Bxc3 {[%emt 0:18:42]} 16. bxc3 {[%emt 0:02:16]} Qf6 {[%emt 0:03:01]} 17. Qd5+ {[%emt 0:05:06]} Kh8 {[%emt 0:03:29]} 18. Bxg4 {[%emt 0:01:06]} fxg4 {[%emt 0:01:36]} 19. Bb2 {[%emt 0:00:15]} h5 {[%emt 0:02:53]} 20. Rab1 {[%emt 0:00:25]} Kh7 {[%emt 0:00:32]} 21. c4 {[%emt 0:00:27]} Qe6 {[%emt 0:02:11]} 22. f5 {[%emt 0:01:05]} Qxd5 {[%emt 0:04:42]} 23. cxd5 {[%emt 0:00:41]} Ne5 {[%emt 0:00:42]} 24. Bxe5 {[%emt 0:00:56]} Rxe5 {[%emt 0:00:38]} 25. Rxb7 {[%emt 0:00:22]} h4 {[%emt 0:01:01]} 26. Rxc7+ {[%emt 0:01:39]} Kh6 {[%emt 0:01:38]} 27. fxg6 {[%emt 0:05:09]} hxg3 {[%emt 0:01:36]} 28. g7 {[%emt 0:00:31]} Rg8 {[%emt 0:03:18]} 29. Rf4 {[%emt 0:04:28]} Rxg7 {[%emt 0:01:31]} 30. Rxg7 {[%emt 0:00:34]} Kxg7 {[%emt 0:00:05]} 31. Kxg3 {[%emt 0:00:14]} Rh5 {[%emt 0:01:20]} 32. Kxg4 {[%emt 0:01:55]} Rh2 {[%emt 0:00:22]} 33. Kf5 {[%emt 0:00:31]} Kf7 {[%emt 0:01:46]} 34. c4 {[%emt 0:00:16]} Rxa2 {[%emt 0:00:35]} 35. e5 {[%emt 0:00:57]} Ke7 {[%emt 0:00:53]} 36. e6 {[%emt 0:00:47]} Rc2 {[%emt 0:01:41]} 37. Rh4 {[%emt 0:00:30]} a5 {[%emt 0:01:07]} 38. Rh7+ {[%emt 0:01:02]} Ke8 {[%emt 0:00:08]} 39. Rd7 {[%emt 0:00:42]} Rxc4 {[%emt 0:00:56]} 40. Rxd6 {[%emt 0:00:06]} Rc1 {[%emt 0:00:50]} 41. Ra6 {[%emt 0:00:20]} Ke7 {[%emt 0:01:19]} 42. d6+ {[%emt 0:00:19]} Kf8 {[%emt 0:00:25]} 43. Ra8+ {[%emt 0:00:14]} Kg7 {[%emt 0:00:08]} 44. d7 {[%emt 0:00:18]} 1-0

[Event "Weekend Groninger Combinatie 2019"]
[Site "Groningen"]
[Date "2019.05.30"]
[Round "1.7"]
[White "Bosboom, Ardin"]
[Black "Villwock, Martin"]
[Result "1-0"]
[ECO "E20"]
[WhiteElo "1965"]
[BlackElo "2180"]
[Annotator "ChessBase"]
[PlyCount "41"]
[EventDate "2019.05.30"]
[EventType "swiss"]
[EventCountry "NED"]
[SourceTitle "playchess.com"]
[Source "ChessBase"]
[SourceQuality "1"]
[TimeControl "5400+30"]

1. d4 {[%emt 0:00:00]} Nf6 {[%emt 0:00:00]} 2. c4 {[%emt 0:00:00]} e6 {[%emt 0:00:10]} 3. Nc3 {[%emt 0:00:05]} Bb4 {[%emt 0:00:12]} 4. f3 {[%emt 0:00:06]} c5 {[%emt 0:01:40]} 5. d5 {[%emt 0:00:06]} O-O {[%emt 0:04:00]} 6. e4 {[%emt 0:01:23]} Nh5 {[%emt 0:08:04]} 7. Be3 {[%emt 0:11:31]} f5 {[%emt 0:03:04]} 8. dxe6 {[%emt 0:06:24]} dxe6 {[%emt 0:09:10]} 9. Qxd8 {[%emt 0:00:34]} Rxd8 {[%emt 0:00:19]} 10. Nge2 {[%emt 0:00:17]} b6 {[%emt 0:06:11]} 11. g4 {[%emt 0:09:29]} Nf6 {[%emt 0:04:10]} 12. e5 {[%emt 0:03:06]} Rd3 {[%emt 0:06:09]} 13. exf6 {[%emt 0:15:22]} Rxe3 {[%emt 0:00:32]} 14. O-O-O {[%emt 0:00:06]} Bb7 {[%emt 0:05:14]} 15. gxf5 {[%emt 0:01:49]} Bxc3 {[%emt 0:07:03]} 16. Nxc3 {[%emt 0:00:20]} Bxf3 {[%emt 0:01:47]} 17. Rd8+ {[%emt 0:02:01]} Kf7 {[%emt 0:00:08]} 18. fxg7 {[%emt 0:00:33]} Kxg7 {[%emt 0:00:13]} 19. Rg1+ {[%emt 0:00:09]} Kf6 {[%emt 0:01:08]} 20. Kd2 {[%emt 0:00:23]} Re5 {[%emt 0:01:08]} 21. Rgg8 {[%emt 0:00:33]} 1-0

[Event "Weekend Groninger Combinatie 2019"]
[Site "Groningen"]
[Date "2019.05.30"]
[Round "1.8"]
[White "Colbow, Collin"]
[Black "Zuiderweg, Edwin"]
[Result "1-0"]
[ECO "B35"]
[WhiteElo "2169"]
[BlackElo "1958"]
[Annotator "ChessBase"]
[PlyCount "55"]
[EventDate "2019.05.30"]
[EventType "swiss"]
[EventCountry "NED"]
[SourceTitle "playchess.com"]
[Source "ChessBase"]
[SourceQuality "1"]
[TimeControl "5400+30"]

1. e4 {[%emt 0:00:00]} c5 {[%emt 0:00:00]} 2. Nf3 {[%emt 0:00:00]} Nc6 {[%emt 0:00:00]} 3. d4 {[%emt 0:00:00]} cxd4 {[%emt 0:00:00]} 4. Nxd4 {[%emt 0:00:00]} g6 {[%emt 0:00:04]} 5. Nc3 {[%emt 0:00:00]} Bg7 {[%emt 0:00:11]} 6. Be3 {[%emt 0:00:02]} Nf6 {[%emt 0:00:08]} 7. Bc4 {[%emt 0:00:16]} O-O {[%emt 0:00:14]} 8. Bb3 {[%emt 0:00:21]} a5 {[%emt 0:00:15]} 9. O-O {[%emt 0:01:38]} Ng4 {[%emt 0:04:52]} 10. Qxg4 {[%emt 0:06:20]} Nxd4 {[%emt 0:00:15]} 11. Qd1 {[%emt 0:04:46]} Nxb3 {[%emt 0:03:50]} 12. axb3 {[%emt 0:00:06]} b6 {[%emt 0:06:12]} 13. Nd5 {[%emt 0:06:24]} Rb8 {[%emt 0:01:04]} 14. Bd4 {[%emt 0:02:10]} d6 {[%emt 0:13:38]} 15. Bxg7 {[%emt 0:02:29]} Kxg7 {[%emt 0:00:08]} 16. Qd4+ {[%emt 0:01:37]} Kg8 {[%emt 0:04:03]} 17. f4 {[%emt 0:06:16]} Be6 {[%emt 0:02:14]} 18. f5 {[%emt 0:01:54]} Bxd5 {[%emt 0:00:18]} 19. exd5 {[%emt 0:01:59]} Qc7 {[%emt 0:04:31]} 20. Qe4 {[%emt 0:07:15]} Rbc8 {[%emt 0:01:17]} 21. Rf2 {[%emt 0:12:51]} b5 {[%emt 0:12:23]} 22. Kh1 {[%emt 0:03:54]} Ra8 {[%emt 0:03:06]} 23. h4 {[%emt 0:03:09]} Qb7 {[%emt 0:16:39]} 24. Raf1 {[%emt 0:02:26]} a4 {[%emt 0:02:28]} 25. fxg6 {[%emt 0:00:23]} hxg6 {[%emt 0:01:23]} 26. h5 {[%emt 0:03:35]} Kg7 {[%emt 0:03:26]} 27. Rxf7+ {[%emt 0:00:08]} Rxf7 {[%emt 0:01:34]} 28. Qxg6+ {[%emt 0:00:03]} 1-0

[Event "Weekend Groninger Combinatie 2019"]
[Site "Groningen"]
[Date "2019.05.30"]
[Round "1.9"]
[White "Oord, Raymon"]
[Black "Duijker, Rick"]
[Result "0-1"]
[ECO "A47"]
[WhiteElo "1948"]
[BlackElo "2164"]
[Annotator "ChessBase"]
[PlyCount "80"]
[EventDate "2019.05.30"]
[EventType "swiss"]
[EventCountry "NED"]
[SourceTitle "playchess.com"]
[Source "ChessBase"]
[SourceQuality "1"]
[TimeControl "5400+30"]

1. d4 {[%emt 0:00:00]} Nf6 {[%emt 0:05:17]} 2. Nf3 {[%emt 0:00:00]} c5 {[%emt 0:00:45]} 3. c3 {[%emt 0:01:08]} b6 {[%emt 0:00:20]} 4. Bf4 {[%emt 0:00:56]} Bb7 {[%emt 0:00:25]} 5. e3 {[%emt 0:01:18]} e6 {[%emt 0:00:47]} 6. Nbd2 {[%emt 0:01:46]} Be7 {[%emt 0:00:35]} 7. Bd3 {[%emt 0:01:40]} O-O {[%emt 0:00:35]} 8. Qe2 {[%emt 0:04:23]} d6 {[%emt 0:00:25]} 9. e4 {[%emt 0:06:40]} cxd4 {[%emt 0:01:43]} 10. cxd4 {[%emt 0:01:31]} Nc6 {[%emt 0:00:52]} 11. a3 {[%emt 0:06:59]} e5 {[%emt 0:00:40]} 12. dxe5 {[%emt 0:06:37]} Nh5 {[%emt 0:00:21]} 13. Bg3 {[%emt 0:10:14]} Nxg3 {[%emt 0:01:55]} 14. hxg3 {[%emt 0:01:33]} dxe5 {[%emt 0:00:25]} 15. Nc4 {[%emt 0:06:31]} Nd4 {[%emt 0:05:54]} 16. Nxd4 {[%emt 0:01:15]} exd4 {[%emt 0:00:36]} 17. Qh5 {[%emt 0:12:50]} h6 {[%emt 0:00:35]} 18. Ne5 {[%emt 0:08:09]} Rc8 {[%emt 0:09:29]} 19. Qg4 {[%emt 0:08:07]} Rc5 {[%emt 0:05:47]} 20. f4 {[%emt 0:07:02]} Qc7 {[%emt 0:11:50]} 21. Qe2 {[%emt 0:03:19]} Rxe5 {[%emt 0:01:45]} 22. fxe5 {[%emt 0:01:22]} Qxe5 {[%emt 0:00:11]} 23. O-O-O {[%emt 0:01:48]} Qxg3 {[%emt 0:02:17]} 24. Rh3 {[%emt 0:00:45]} Qe5 {[%emt 0:01:40]} 25. Rf1 {[%emt 0:01:59]} Bc8 {[%emt 0:01:01]} 26. Rh5 {[%emt 0:01:11]} Bg5+ {[%emt 0:02:08]} 27. Kb1 {[%emt 0:00:14]} Be6 {[%emt 0:00:23]} 28. Ba6 {[%emt 0:03:16]} Rd8 {[%emt 0:04:26]} 29. Bd3 {[%emt 0:00:33]} Rc8 {[%emt 0:01:08]} 30. Qf3 {[%emt 0:00:42]} b5 {[%emt 0:01:50]} 31. Qd1 {[%emt 0:00:56]} a5 {[%emt 0:01:44]} 32. Rf2 {[%emt 0:00:36]} g6 {[%emt 0:06:08]} 33. Rh1 {[%emt 0:00:27]} Rc1+ {[%emt 0:01:00]} 34. Qxc1 {[%emt 0:00:03]} Bxc1 {[%emt 0:00:11]} 35. Rxc1 {[%emt 0:00:16]} Qg3 {[%emt 0:00:15]} 36. Rd2 {[%emt 0:01:16]} Qe3 {[%emt 0:00:24]} 37. Rcd1 {[%emt 0:00:08]} Bg4 {[%emt 0:00:32]} 38. Bxb5 {[%emt 0:00:33]} Bxd1 {[%emt 0:00:22]} 39. Rxd1 {[%emt 0:00:18]} Qxe4+ {[%emt 0:01:20]} 40. Ka2 {[%emt 0:00:39]} Qd5+ {[%emt 0:00:11]} 0-1

[Event "Weekend Groninger Combinatie 2019"]
[Site "Groningen"]
[Date "2019.05.30"]
[Round "1.10"]
[White "Wichtrup, Jan-Louis"]
[Black "Aden, Meino"]
[Result "1-0"]
[ECO "D55"]
[WhiteElo "2110"]
[BlackElo "1921"]
[Annotator "ChessBase"]
[PlyCount "162"]
[EventDate "2019.05.30"]
[EventType "swiss"]
[EventCountry "NED"]
[SourceTitle "playchess.com"]
[Source "ChessBase"]
[SourceQuality "1"]
[TimeControl "5400+30"]

1. d4 {[%emt 0:00:00]} d5 {[%emt 0:00:00]} 2. c4 {[%emt 0:00:00]} e6 {[%emt 0:00:00]} 3. Nc3 {[%emt 0:00:03]} Nf6 {[%emt 0:00:00]} 4. Bg5 {[%emt 0:00:11]} Be7 {[%emt 0:00:00]} 5. e3 {[%emt 0:00:13]} O-O {[%emt 0:00:02]} 6. Nf3 {[%emt 0:00:35]} a6 {[%emt 0:00:13]} 7. cxd5 {[%emt 0:02:05]} Nxd5 {[%emt 0:01:21]} 8. Bxe7 {[%emt 0:02:47]} Qxe7 {[%emt 0:00:35]} 9. Nxd5 {[%emt 0:07:45]} exd5 {[%emt 0:00:41]} 10. Qc2 {[%emt 0:00:22]} Qb4+ {[%emt 0:02:35]} 11. Nd2 {[%emt 0:05:01]} c6 {[%emt 0:06:35]} 12. Bd3 {[%emt 0:00:56]} h6 {[%emt 0:00:14]} 13. O-O {[%emt 0:00:12]} Qe7 {[%emt 0:01:01]} 14. Nb3 {[%emt 0:12:04]} Nd7 {[%emt 0:04:56]} 15. Rac1 {[%emt 0:06:26]} Nf6 {[%emt 0:04:11]} 16. Nc5 {[%emt 0:00:52]} Re8 {[%emt 0:05:02]} 17. b4 {[%emt 0:04:00]} Ne4 {[%emt 0:04:31]} 18. Bxe4 {[%emt 0:01:43]} dxe4 {[%emt 0:00:05]} 19. Rfd1 {[%emt 0:02:32]} Bg4 {[%emt 0:05:03]} 20. Rd2 {[%emt 0:01:05]} b6 {[%emt 0:01:08]} 21. Na4 {[%emt 0:01:56]} Qg5 {[%emt 0:02:26]} 22. Kh1 {[%emt 0:01:42]} Rab8 {[%emt 0:01:00]} 23. Nc3 {[%emt 0:06:58]} Qf5 {[%emt 0:04:48]} 24. d5 {[%emt 0:02:00]} cxd5 {[%emt 0:10:07]} 25. Nxd5 {[%emt 0:04:05]} Qe5 {[%emt 0:05:23]} 26. Qb2 {[%emt 0:05:56]} Qxb2 {[%emt 0:07:11]} 27. Rxb2 {[%emt 0:00:10]} Red8 {[%emt 0:04:39]} 28. Ne7+ {[%emt 0:13:48]} Kf8 {[%emt 0:00:15]} 29. Nc6 {[%emt 0:00:10]} Rbc8 {[%emt 0:01:18]} 30. h3 {[%emt 0:02:02]} Rd6 {[%emt 0:03:23]} 31. hxg4 {[%emt 0:04:38]} Rdxc6 {[%emt 0:01:13]} 32. Rxc6 {[%emt 0:00:07]} Rxc6 {[%emt 0:00:05]} 33. b5 {[%emt 0:00:05]} Rc1+ {[%emt 0:03:18]} 34. Kh2 {[%emt 0:00:36]} a5 {[%emt 0:00:05]} 35. Kg3 {[%emt 0:01:20]} g5 {[%emt 0:00:51]} 36. Rd2 {[%emt 0:00:29]} Rc5 {[%emt 0:01:04]} 37. a4 {[%emt 0:00:49]} Rc4 {[%emt 0:03:39]} 38. Rd6 {[%emt 0:01:54]} Rxa4 {[%emt 0:00:09]} 39. Rxh6 {[%emt 0:00:20]} Rb4 {[%emt 0:00:28]} 40. Rxb6 {[%emt 0:00:09]} a4 {[%emt 0:00:10]} 41. Ra6 {[%emt 0:03:43]} Rxb5 {[%emt 0:00:45]} 42. Rxa4 {[%emt 0:00:35]} Re5 {[%emt 0:00:10]} 43. Kh2 {[%emt 0:01:36]} Kg7 {[%emt 0:01:53]} 44. Kg1 {[%emt 0:00:16]} Re6 {[%emt 0:00:13]} 45. Kf1 {[%emt 0:01:41]} Kf6 {[%emt 0:00:22]} 46. Ke2 {[%emt 0:00:25]} Ke5 {[%emt 0:00:28]} 47. Ra5+ {[%emt 0:00:50]} Kf6 {[%emt 0:00:05]} 48. Kd2 {[%emt 0:00:27]} Rc6 {[%emt 0:00:55]} 49. Rf5+ {[%emt 0:02:28]} Kg6 {[%emt 0:00:08]} 50. Re5 {[%emt 0:00:08]} Rc4 {[%emt 0:00:16]} 51. Rd5 {[%emt 0:00:52]} Ra4 {[%emt 0:00:23]} 52. Kc3 {[%emt 0:00:33]} Ra1 {[%emt 0:03:51]} 53. Kd4 {[%emt 0:02:06]} Rf1 {[%emt 0:00:44]} 54. Rf5 {[%emt 0:00:13]} Ra1 {[%emt 0:01:31]} 55. Kxe4 {[%emt 0:00:07]} Ra4+ {[%emt 0:00:31]} 56. Kf3 {[%emt 0:00:09]} Rb4 {[%emt 0:00:44]} 57. Rd5 {[%emt 0:00:13]} Rb2 {[%emt 0:00:58]} 58. Rd6+ {[%emt 0:00:09]} Kg7 {[%emt 0:01:11]} 59. Kg3 {[%emt 0:00:30]} Rb3 {[%emt 0:00:16]} 60. Rd2 {[%emt 0:01:43]} Ra3 {[%emt 0:00:58]} 61. Re2 {[%emt 0:00:19]} Kg6 {[%emt 0:00:47]} 62. f3 {[%emt 0:00:07]} Rb3 {[%emt 0:00:29]} 63. Kf2 {[%emt 0:00:14]} Rb1 {[%emt 0:00:10]} 64. g3 {[%emt 0:00:45]} Ra1 {[%emt 0:01:06]} 65. f4 {[%emt 0:00:42]} Rb1 {[%emt 0:01:31]} 66. Ra2 {[%emt 0:02:11]} Rh1 {[%emt 0:00:21]} 67. Ra6+ {[%emt 0:01:01]} f6 {[%emt 0:00:11]} 68. Ra7 {[%emt 0:00:43]} gxf4 {[%emt 0:01:09]} 69. gxf4 {[%emt 0:00:10]} Rb1 {[%emt 0:01:31]} 70. Ra6 {[%emt 0:00:34]} Kg7 {[%emt 0:00:45]} 71. Kf3 {[%emt 0:00:15]} Rf1+ {[%emt 0:00:12]} 72. Ke4 {[%emt 0:00:11]} Rb1 {[%emt 0:01:10]} 73. Ra7+ {[%emt 0:01:20]} Kg6 {[%emt 0:00:33]} 74. Ra6 {[%emt 0:00:59]} Rb4+ {[%emt 0:01:02]} 75. Kf3 {[%emt 0:00:11]} Kg7 {[%emt 0:00:05]} 76. f5 {[%emt 0:00:49]} Rb1 {[%emt 0:00:40]} 77. g5 {[%emt 0:00:26]} fxg5 {[%emt 0:00:19]} 78. Rg6+ {[%emt 0:00:02]} Kf7 {[%emt 0:00:29]} 79. Rxg5 {[%emt 0:00:04]} Kf6 {[%emt 0:00:16]} 80. Rh5 {[%emt 0:00:26]} Rf1+ {[%emt 0:00:48]} 81. Ke4 {[%emt 0:00:14]} Rf2 {[%emt 0:00:14]} 1-0